Cogmind - Beta 10.2 @@@ ROGUE MODE // 2021.02.15 @ 14:33:04 Player: TotallyRasta Result: Destroyed by P-80 Master with Gamma Rifle Performance ------------- Evolutions (8) 4000 Regions Visited (11) 2200 Robots Destroyed (40) 200 Value Destroyed (987) 987 Prototype IDs (2) 40 Alien Tech Used (0) 0 Bonus (274) 274 TOTAL SCORE: 7701 Bonus ------- High Alert Combat Kills 8 Follower Combat Kills 266 Cogmind --------- Core Integrity 0/1450 Matter 158/300 Energy 99/100 System Corruption 1% Temperature Cool (0) Movement Core (50) Location -2/Research Parts ------- > --- POWER (3) -------- (None) > --- PROPULSION (6) --- (None) > --- UTILITY (6) ------ (None) > --- WEAPON (8) ------- (None) > --- INVENTORY (4) ---- Improved Kinecellerator Improved Kinecellerator Thief Drone Bay Peak State ------------ > --- POWER ------------ Light Nuclear Core > --- PROPULSION ------- Improved Gyrokinetic Inverter Improved Gyrokinetic Inverter Improved Gyrokinetic Inverter > --- UTILITY ---------- Advanced ECM Suite Improved Propulsion Shielding > --- WEAPON ----------- Variable Charge Gun > --- INVENTORY -------- Improved Kinecellerator Thief Drone Bay [Rating: 39] Favorites ----------- Power Light Nuclear Core Engine Light Ion Engine Power Core Light Nuclear Core Propulsion Wheel Treads Advanced Treads Wheel Wheel Hover Unit Improved Gyrokinetic Inverter Flight Unit Nuclear Pulse Array Utility High-capacity Storage Unit Device Structural Scanner Storage High-capacity Storage Unit Protection Improved Power Shielding Weapon Autogun Energy Gun EM Pulse Gun Energy Cannon Light EM Pulse Cannon Ballistic Gun Autogun Build | -11 -10 -10 -9 -8 -7 -6 -5 -5 -4 -3 -2 ------- Run | Scr Mat Min Mat Mat Fac Fac Fac Ext Fac Res Res Slots Evolved 16 | . . . 2 2 2 2 2 . 2 2 2 Power 2 | . . . . . . . . . 2 . . Propulsion 4 | . . . . . 2 1 1 . . . . Utility 4 | . . . . 2 . 1 . . . 1 . Weapon 6 | . . . 2 . . . 1 . . 1 2 Parts Attached 46 | 6 4 1 9 3 7 3 6 . 7 . . Power 6 | 1 1 . 2 . . . 1 . 1 . . Engine 3 | 1 1 . 1 . . . . . . . . Core 3 | . . . 1 . . . 1 . 1 . . Reactor . | . . . . . . . . . . . . Propulsion 13 | 2 . . 4 . 3 . 1 . 3 . . Treads 2 | . . . . . 2 . . . . . . Leg . | . . . . . . . . . . . . Wheel 7 | 2 . . 4 . 1 . . . . . . Hover 3 | . . . . . . . . . 3 . . Flight 1 | . . . . . . . 1 . . . . Utility 11 | 1 1 1 . 2 1 1 2 . 2 . . Device 2 | . . 1 . . . . . . 1 . . Storage 2 | 1 1 . . . . . . . . . . Processor . | . . . . . . . . . . . . Hackware . | . . . . . . . . . . . . Protection 7 | . . . . 2 1 1 2 . 1 . . Artifact . | . . . . . . . . . . . . Weapon 16 | 2 2 . 3 1 3 2 2 . 1 . . Energy Gun 3 | 1 . . . . . . 1 . 1 . . Energy Cannon 2 | . . . . . 1 . 1 . . . . Ballistic Gun 11 | 1 2 . 3 1 2 2 . . . . . Ballistic Cannon . | . . . . . . . . . . . . Launcher . | . . . . . . . . . . . . Special Weapon . | . . . . . . . . . . . . Impact Weapon . | . . . . . . . . . . . . Slashing Weapon . | . . . . . . . . . . . . Piercing Weapon . | . . . . . . . . . . . . Special Melee Weapon . | . . . . . . . . . . . . Unidentified Prototypes . | . . . . . . . . . . . . Parts Lost 17 | . . . 1 . 5 4 6 . 1 . . Power 1 | . . . . . . . . . 1 . . Propulsion 5 | . . . 1 . 1 1 2 . . . . Utility 3 | . . . . . 1 2 . . . . . Weapon 8 | . . . . . 3 1 4 . . . . Highest Loss Streak 6 | . . . 1 . 4 3 6 . 1 . . Average Slot Usage (%) 63 | . 85 93 99 99 94 69 25 . 28 . . Engine 3 | . 14 14 8 . . . . . . . . Core 2 | . . . 2 9 7 . 1 . 3 . . Treads 1 | . . . . . 7 6 2 . . . . Wheel 13 | . 28 28 21 18 22 9 2 . . . . Device 4 | . . 7 11 9 5 . . . 3 . . Storage 6 | . 14 14 11 9 7 6 2 . . . . Protection 5 | . . . . 17 15 19 3 . 3 . . Ballistic Gun 20 | . 18 28 43 35 25 25 7 . . . . Naked Turns 712 | . . . . . . . 146 288 35 24 219 Heaviest Build 65 | 11 44 42 54 59 61 65 47 . 15 . . Greatest Support 51 | 26 26 26 26 20 30 22 20 3 51 3 3 Greatest Overweight (x) 5 | . 1 1 2 2 5 5 4 . . . . Average Overweight (x) . | . . 1 1 2 1 2 . . . . . Largest Inventory Capacity 14 | 6 14 12 12 12 12 12 12 4 4 4 4 Average Capacity 9 | 4 11 12 12 12 12 12 7 4 4 4 4 Most Carried 12 | 4 10 11 12 12 12 10 8 4 4 3 3 Average Carried 7 | 1 6 10 11 11 10 8 5 4 2 3 3 Final Capacity 12 | 6 12 12 12 12 12 12 4 4 4 4 4 Final Carried 12 | . 9 11 12 12 11 9 4 4 3 3 3 Class Distribution -------------------- 48% | Mutant 32% | Tank 16% | Skirmisher Dominant Class ---------------- Mutant | -10/Materials Mutant | -10/Mines Skirmisher | -9/Materials Tank | -8/Materials Tank | -7/Factory Tank | -6/Factory Mutant | -5/Factory Mutant | -5/Extension Mutant | -4/Factory Mutant | -3/Research Mutant | -2/Research Resources | -11 -10 -10 -9 -8 -7 -6 -5 -5 -4 -3 -2 ----------- Run | Scr Mat Min Mat Mat Fac Fac Fac Ext Fac Res Res Matter Collected 1388 | 179 35 27 700 159 117 . . 145 . . 26 Remotely . | . . . . . . . . . . . . Salvage Created 1393 | . 87 . 856 279 171 . . . . . . Parts 100 | . 16 . 61 15 8 . . . . . . Haulers Intercepted 2 | . . . 2 . . . . . . . . Recyclers Shooed 1 | . . . 1 . . . . . . . . Parts Field Recycled . | . . . . . . . . . . . . Retrieved Matter . | . . . . . . . . . . . . Parts Self-Destructed . | . . . . . . . . . . . . Prevented . | . . . . . . . . . . . . Kills | -11 -10 -10 -9 -8 -7 -6 -5 -5 -4 -3 -2 ------- Run | Scr Mat Min Mat Mat Fac Fac Fac Ext Fac Res Res Combat Hostiles Destroyed 31 | . 6 . 16 5 4 . . . . . . Guns 28 | . 6 . 16 5 1 . . . . . . Cannons 1 | . . . . . 1 . . . . . . AOE 2 | . . . . . 2 . . . . . . Classes Destroyed 8 | . 1 . 6 1 . . . . . . . Worker 3 | . . . 3 . . . . . . . . Builder 3 | . . . 3 . . . . . . . . Hauler 2 | . . . 2 . . . . . . . . Watcher 1 | . . . 1 . . . . . . . . Swarmer 14 | . 6 . 6 . 2 . . . . . . Grunt 8 | . . . 6 2 . . . . . . . Brawler 1 | . . . . 1 . . . . . . . Sentry 8 | . . . 4 2 2 . . . . . . Best Kill Streak 6 | . 6 . 4 3 1 . . . . . . Combat Bots Only 6 | . 6 . 4 3 1 . . . . . . Max Kills in Single Turn 2 | . 2 . 2 1 1 . . . . . . Gunslinging 1 | . 1 . 1 . . . . . . . . Exploded 1 | . . . . . 1 . . . . . . Melee . | . . . . . . . . . . . . Uniques/NPCs Destroyed . | . . . . . . . . . . . . Combat | -11 -10 -10 -9 -8 -7 -6 -5 -5 -4 -3 -2 -------- Run | Scr Mat Min Mat Mat Fac Fac Fac Ext Fac Res Res Damage Taken 5342 | . 157 4 419 118 992 278 1454 44 278 134 1464 Core 2723 | . 48 4 33 . 88 60 666 44 182 134 1464 Absorbed by Shields 98 | . . . . . 29 . . . . . 69 Core Remaining (%) 83 | 100 . 79 91 100 87 92 . 29 84 89 . Volleys Fired 86 | . 10 . 45 8 19 . 4 . . . . Largest 4 | . 2 . 4 4 4 . 1 . . . . Hottest 132 | . 63 . 92 92 132 . 56 . . . . Shots Fired 284 | . 20 . 178 32 50 . 4 . . . . Gun 270 | . 20 . 178 32 40 . . . . . . Cannon 14 | . . . . . 10 . 4 . . . . Launcher . | . . . . . . . . . . . . Special . | . . . . . . . . . . . . Kinetic 262 | . 12 . 178 32 40 . . . . . . Thermal . | . . . . . . . . . . . . Explosive . | . . . . . . . . . . . . Electromagnetic 22 | . 8 . . . 10 . 4 . . . . Robot Hit Streak 16 | . 7 . 16 7 10 . 3 . . . . Robot Miss Streak 6 | . 3 . 5 2 6 . 4 . . . . Penetration Max . | . . . . . . . . . . . . Secondary Targets 6 | . 1 . 5 . . . . . . . . Max Gunslinging Chain 1 | . 1 . 1 . . . . . . . . Shots Hit Robots 164 | . 11 . 96 21 33 . 3 . . . . Core Hits 73 | . 6 . 35 10 16 . 2 . 2 . 2 Critical Hits 3 | . . . 2 1 . . . . . . . Critical Kills 1 | . . . 1 . . . . . . . . Critical Parts Destroyed 2 | . . . 1 1 . . . . . . . Melee Attacks . | . . . . . . . . . . . . Impact . | . . . . . . . . . . . . Slashing . | . . . . . . . . . . . . Piercing . | . . . . . . . . . . . . Sneak Attacks . | . . . . . . . . . . . . Combat Hostiles . | . . . . . . . . . . . . Follow-up Attacks . | . . . . . . . . . . . . Damage Inflicted 2577 | . 142 8 1289 328 645 49 67 . 23 17 9 Guns 2165 | . 142 . 1289 328 406 . . . . . . Cannons 181 | . . . . . 124 . 57 . . . . Explosions 95 | . . . . . 95 . . . . . . Melee . | . . . . . . . . . . . . Ramming 136 | . . 8 . . 20 49 10 . 23 17 9 Kinetic 2113 | . 90 . 1289 328 406 . . . . . . Thermal . | . . . . . . . . . . . . Explosive 38 | . . . . . 38 . . . . . . Electromagnetic 290 | . 52 . . . 181 . 57 . . . . Impact . | . . . . . . . . . . . . Slashing . | . . . . . . . . . . . . Piercing . | . . . . . . . . . . . . Highest Corruption 7 | . . . . . 4 7 2 2 1 . . Average Corruption 2 | . . . . . 3 4 1 2 1 . . Corruption Purged . | . . . . . . . . . . . . Effects 13 | . . . . . 3 5 . 5 . . . Message Errors 2 | . . . . . . 1 . 1 . . . Matter Fused 5 | . . . . . 2 3 . . . . . Heat Flow Errors 2 | . . . . . . 1 . 1 . . . Energy Discharges 2 | . . . . . 1 . . 1 . . . Data Loss (minor) 2 | . . . . . . . . 2 . . . Overload Shots . | . . . . . . . . . . . . Overflow Damage 14 | . . . . . . 14 . . . . . Projectiles . | . . . . . . . . . . . . Explosions . | . . . . . . . . . . . . Melee 14 | . . . . . . 14 . . . . . Knockbacks 1 | . . . . . . 1 . . . . . Impact 1 | . . . . . . 1 . . . . . Kinetic . | . . . . . . . . . . . . Secondary . | . . . . . . . . . . . . Self-Inflicted Damage 113 | . . 4 . . 61 24 3 . 10 8 3 Shots 3 | . . . . . 3 . . . . . . Rammed 25 | . . 1 . . 3 3 7 . 6 1 4 Targets Rammed 25 | . . 1 . . 3 3 7 . 6 1 4 Kicked . | . . . . . . . . . . . . Crushed . | . . . . . . . . . . . . Highest Temperature 212 | . 56 . 158 205 111 212 . 122 . . . Average Temperature 55 | . 28 . 58 82 38 118 . 62 . . . Received Heat Transfer 637 | . . . 141 36 247 . 153 9 . 18 33 Siege Activations . | . . . . . . . . . . . . Robots Corrupted . | . . . . . . . . . . . . Combat Hostiles . | . . . . . . . . . . . . Parts Fried . | . . . . . . . . . . . . Impact Corruptions 1 | . . . . . . 1 . . . . . Robots Melted . | . . . . . . . . . . . . Combat Hostiles . | . . . . . . . . . . . . Parts Melted . | . . . . . . . . . . . . Heat Transferred . | . . . . . . . . . . . . Parts Sabotaged . | . . . . . . . . . . . . Parts Stolen . | . . . . . . . . . . . . Parts Stripped . | . . . . . . . . . . . . Power Chain Reactions 1 | . . . . . 1 . . . . . . Missiles Intercepted . | . . . . . . . . . . . . Alert | -11 -10 -10 -9 -8 -7 -6 -5 -5 -4 -3 -2 ------- Run | Scr Mat Min Mat Mat Fac Fac Fac Ext Fac Res Res Peak Influence 417 | . 179 69 417 236 199 . 150 263 260 166 303 Initial 145 | . . 69 . 145 . . . 73 105 136 93 Average 106 | . 69 67 225 105 89 . 42 184 144 147 168 Maximum Alert Level 2 | . . . 2 1 . . . 1 1 . 1 Low Security (%) 82 | 100 100 100 42 87 100 100 100 44 84 100 60 Level 1 17 | . . . 53 12 . . . 55 15 . 39 Level 2 . | . . . 4 . . . . . . . . Level 3 . | . . . . . . . . . . . . Level 4 . | . . . . . . . . . . . . Level 5 . | . . . . . . . . . . . . High Security . | . . . . . . . . . . . . Max Security . | . . . . . . . . . . . . Squads Dispatched 9 | . . . 3 . 1 1 2 . . . 2 Investigation 1 | . . . . . . . 1 . . . . Extermination 2 | . . . . . . 1 1 . . . . Reinforcement 6 | . . . 3 . 1 . . . . . 2 Assault . | . . . . . . . . . . . . Garrison . | . . . . . . . . . . . . Intercept . | . . . . . . . . . . . . Construction Impeded 1 | . . . 1 . . . . . . . . Haulers Reinforced . | . . . . . . . . . . . . Stealth | -11 -10 -10 -9 -8 -7 -6 -5 -5 -4 -3 -2 --------- Run | Scr Mat Min Mat Mat Fac Fac Fac Ext Fac Res Res Distress Signals 6 | . . . 3 . 1 . . . . . 2 Communications Jammed . | . . . . . . . . . . . . Distress Signals . | . . . . . . . . . . . . Times Spotted 124 | . 9 . 25 5 19 1 16 12 11 3 23 Peak Tracking Total 11 | . 7 . 5 3 8 1 6 5 8 3 11 Tactical Retreats 20 | . . . 1 . 3 . 7 1 4 . 4 Traps | -11 -10 -10 -9 -8 -7 -6 -5 -5 -4 -3 -2 ------- Run | Scr Mat Min Mat Mat Fac Fac Fac Ext Fac Res Res Traps Triggered 9 | . . . 1 1 3 . 2 . . . 2 Indirectly . | . . . . . . . . . . . . Trap Hack Attempts . | . . . . . . . . . . . . Triggered . | . . . . . . . . . . . . Disarmed 4 | . . . . . . . . 4 . . . Reprogrammed . | . . . . . . . . . . . . Reused . | . . . . . . . . . . . . Traps Extracted . | . . . . . . . . . . . . Installed . | . . . . . . . . . . . . Triggered . | . . . . . . . . . . . . Machines | -11 -10 -10 -9 -8 -7 -6 -5 -5 -4 -3 -2 ---------- Run | Scr Mat Min Mat Mat Fac Fac Fac Ext Fac Res Res Machines Disabled 6 | . . . . . 5 . . 1 . . . Max in Single Turn 4 | . . . . . 4 . . . . . . Machines Sabotaged . | . . . . . . . . . . . . Garrisons Compromised . | . . . . . . . . . . . . Overloaded Fab Kills . | . . . . . . . . . . . . Fab Network Shutdowns . | . . . . . . . . . . . . Hacking | -11 -10 -10 -9 -8 -7 -6 -5 -5 -4 -3 -2 --------- Run | Scr Mat Min Mat Mat Fac Fac Fac Ext Fac Res Res Machines Accessed 15 | . 4 1 2 3 1 2 . 2 . . . Terminals 14 | . 4 . 2 3 1 2 . 2 . . . Fabricators . | . . . . . . . . . . . . Repair Stations . | . . . . . . . . . . . . Recycling Units . | . . . . . . . . . . . . Scanalyzers . | . . . . . . . . . . . . Garrison Access . | . . . . . . . . . . . . Total Hacks 32 | . 8 1 2 9 4 4 . 4 . . . Successful 16 | . 5 1 1 3 2 2 . 2 . . . Failed 16 | . 3 . 1 6 2 2 . 2 . . . Catastrophic 3 | . . . . 3 . . . . . . . Database Lockouts . | . . . . . . . . . . . . Manual 24 | . 5 . 2 9 4 2 . 2 . . . Terminals 31 | . 8 . 2 9 4 4 . 4 . . . Fabricators . | . . . . . . . . . . . . Repair Stations . | . . . . . . . . . . . . Recycling Units . | . . . . . . . . . . . . Scanalyzers . | . . . . . . . . . . . . Garrison Access . | . . . . . . . . . . . . Terminal Hacks 12 | . 1 1 1 3 2 2 . 2 . . . Record 1 | . 1 . . . . . . . . . . Prototype ID Bank 1 | . . . . . . 1 . . . . . Open Door 2 | . . 1 . . . . . 1 . . . Alert Level 1 | . . . . . . 1 . . . . . Unreport Threat 6 | . . . 1 3 2 . . . . . . Disarm Traps 1 | . . . . . . . . 1 . . . Fabricator Hacks . | . . . . . . . . . . . . Repair Station Hacks . | . . . . . . . . . . . . Recycling Unit Hacks . | . . . . . . . . . . . . Scanalyzer . | . . . . . . . . . . . . Garrison Access Hacks . | . . . . . . . . . . . . Unauthorized Hacks 4 | . 4 . . . . . . . . . . Terminals 4 | . 4 . . . . . . . . . . Assimilate 1 | . 1 . . . . . . . . . . Botnet 3 | . 3 . . . . . . . . . . Fabricators . | . . . . . . . . . . . . Repair Stations . | . . . . . . . . . . . . Recycling Units . | . . . . . . . . . . . . Scanalyzers . | . . . . . . . . . . . . Garrison Access . | . . . . . . . . . . . . Data Cores Recovered . | . . . . . . . . . . . . Used . | . . . . . . . . . . . . Hacking Detections 8 | . 3 . 1 3 . . . 1 . . . Full Trace Events . | . . . . . . . . . . . . Feedback Events . | . . . . . . . . . . . . Feedback Blocked . | . . . . . . . . . . . . Robot Schematics Acquired . | . . . . . . . . . . . . Robots Built . | . . . . . . . . . . . . Matter . | . . . . . . . . . . . . Time . | . . . . . . . . . . . . Total Robot Build Rating . | . . . . . . . . . . . . Part Schematics Acquired . | . . . . . . . . . . . . Parts Built . | . . . . . . . . . . . . Matter . | . . . . . . . . . . . . Time . | . . . . . . . . . . . . Total Part Build Rating . | . . . . . . . . . . . . Parts Repaired . | . . . . . . . . . . . . Time . | . . . . . . . . . . . . Parts Recycled . | . . . . . . . . . . . . Recycled Matter . | . . . . . . . . . . . . Retrieved Matter . | . . . . . . . . . . . . Retrieved Components . | . . . . . . . . . . . . Parts Scanalyzed . | . . . . . . . . . . . . Part Schematics Acquired . | . . . . . . . . . . . . Parts Damaged . | . . . . . . . . . . . . Bothacking | -11 -10 -10 -9 -8 -7 -6 -5 -5 -4 -3 -2 ------------ Run | Scr Mat Min Mat Mat Fac Fac Fac Ext Fac Res Res Used RIF Installer . | . . . . . . . . . . . . Robots Hacked . | . . . . . . . . . . . . Non-combat . | . . . . . . . . . . . . Combat . | . . . . . . . . . . . . Robot Hacks Applied . | . . . . . . . . . . . . Relay Couplers Released . | . . . . . . . . . . . . Robots Rewired 7 | . . . . . . . . 7 . . . Allies Hacked . | . . . . . . . . . . . . Hacks Repelled . | . . . . . . . . . . . . Allies | -11 -10 -10 -9 -8 -7 -6 -5 -5 -4 -3 -2 -------- Run | Scr Mat Min Mat Mat Fac Fac Fac Ext Fac Res Res Total Allies 9 | . . 1 . . . . . 8 . . . Largest Group 7 | . . 1 1 . . . . 7 1 . . Highest-Rated Group 338 | . . 31 31 . . . . 338 156 . . Highest-Rated Ally 156 | . . 31 31 . . . . 156 156 . . Total Orders . | . . . . . . . . . . . . Ally Attacks 54 | . . . 3 . . . . 51 . . . Total Damage 1268 | . . . 64 . . . . 1204 . . . Kills 9 | . . . . . . . . 9 . . . Allies Corrupted . | . . . . . . . . . . . . Allies Melted . | . . . . . . . . . . . . Intel | -11 -10 -10 -9 -8 -7 -6 -5 -5 -4 -3 -2 ------- Run | Scr Mat Min Mat Mat Fac Fac Fac Ext Fac Res Res Robot Analysis Total . | . . . . . . . . . . . . Derelict Logs Recovered 1 | . . 1 . . . . . . . . . Drone Launches . | . . . . . . . . . . . . Drone Recoveries . | . . . . . . . . . . . . Exploration | -11 -10 -10 -9 -8 -7 -6 -5 -5 -4 -3 -2 ------------- Run | Scr Mat Min Mat Mat Fac Fac Fac Ext Fac Res Res Turns Passed 3631 | 35 232 409 592 216 423 409 558 288 226 24 219 Spaces Moved 3699 | 37 192 376 356 150 361 329 815 353 294 47 389 Core 1163 | 21 . . . . . . 292 353 61 47 389 Treads 68 | . . . . . . 68 . . . . . Legs . | . . . . . . . . . . . . Wheels 1898 | 16 192 376 356 150 361 261 186 . . . . Hover 233 | . . . . . . . . . 233 . . Flight 337 | . . . . . . . 337 . . . . Fastest Speed 40 | 50 90 100 100 100 90 100 40 50 50 50 50 Average Speed 79 | 67 98 100 103 100 93 122 61 50 61 50 50 Slowest Speed 185 | 90 100 100 110 100 130 185 120 50 70 50 50 Overloaded Moves . | . . . . . . . . . . . . Propulsion Burnouts . | . . . . . . . . . . . . Robots Hopped 4 | . . . . . . . 4 . . . . Cave-ins Triggered . | . . . . . . . . . . . . Exploration Rate (%) 27 | 3 43 75 53 17 13 10 28 58 11 3 15 Regions Visited 11 Branch Regions 2 Pre-discovered Areas . | . . . . . . . . . . . . Known Exits Taken . | . . . . . . . . . . . . Unknown Exits Taken 11 | 1 1 1 1 1 1 1 1 1 1 1 . Scrap Searched 1 | . . 1 . . . . . . . . . Spaces Dug . | . . . . . . . . . . . . Terrain Destroyed 19 | . . . . . 19 . . . . . . Melee . | . . . . . . . . . . . . Projectile . | . . . . . . . . . . . . AOE 19 | . . . . . 19 . . . . . . Terrain Rammed . | . . . . . . . . . . . . Walls Destroyed . | . . . . . . . . . . . . Machines Disabled . | . . . . . . . . . . . . Actions | -11 -10 -10 -9 -8 -7 -6 -5 -5 -4 -3 -2 --------- Run | Scr Mat Min Mat Mat Fac Fac Fac Ext Fac Res Res Total 4209 | 46 217 408 498 200 415 335 832 463 335 47 413 Wait 252 | . 1 29 76 36 15 . 2 66 27 . . Move 3681 | 36 191 375 355 149 360 328 806 352 293 47 389 Hop 4 | . . . . . . . 4 . . . . Pick Up 28 | 4 8 2 6 3 2 . 1 . 2 . . Fast Attach 13 | 2 1 1 2 1 . . 2 . 4 . . Attach 24 | 4 . . 3 2 5 3 4 . 3 . . Detach 6 | . 1 . 1 . 1 1 2 . . . . Swap 9 | . 3 . 4 . 2 . . . . . . Drop 11 | . 2 . 6 1 2 . . . . . . Fire 86 | . 10 . 45 8 19 . 4 . . . . Melee . | . . . . . . . . . . . . Ram 24 | . . 1 . . 3 3 7 . 6 . 4 Kick . | . . . . . . . . . . . . Crush . | . . . . . . . . . . . . Escape Stasis 26 | . . . . . 6 . . . . . 20 Rewire 45 | . . . . . . . . 45 . . . Trap . | . . . . . . . . . . . . Miscellaneous . | . . . . . . . . . . . . Route ------- -11/Scrapyard -10/Materials -10/Mines -9/Materials (discovered 2 exits: *Mat / [*Min]) -8/Materials -7/Factory -6/Factory -5/Factory -5/Extension (discovered 2 exits: *Fac / [*Cet]) -4/Factory -3/Research -2/Research History --------- Turn | Location | Event 13 | -11/Scrapyard | Discovered new exit (range 16) 36 | -11/Scrapyard | Entered Materials 209 | -10/Materials | Discovered new exit (range 12) 268 | -10/Materials | Entered Mines 302 | -10/Mines | YI-UF0 nonchalantly dropped a Grenade Launcher on the ground 304 | -10/Mines | Build established: Mutant 530 | -10/Mines | Found the Drone Emporium 560 | -10/Mines | Found Prototype Device 652 | -10/Mines | Learned Materials stockpile data 655 | -10/Mines | Discovered new exit (range 8) 659 | -10/Mines | Received a Mining Laser from a helpful Derelict 677 | -10/Mines | Entered Materials 677 | -9/Materials | Accompanied by 1 ally 677 | -9/Materials | Evolved 2 slots: Weapon x2 985 | -9/Materials | Build established: Skirmisher 1017 | -9/Materials | Discovered new exit (range 13) 1265 | -9/Materials | Discovered new exit (range 5) 1269 | -9/Materials | Entered another Materials area 1269 | -8/Materials | Evolved 2 slots: Utility x2 1449 | -8/Materials | Discovered new exit (range 3) 1485 | -8/Materials | Entered Factory 1485 | -7/Factory | Evolved 2 slots: Propulsion x2 1582 | -7/Factory | Build established: Tank 1885 | -7/Factory | Lost 4 parts (1n1u2w) 1904 | -7/Factory | Discovered new exit (range 4) 1908 | -7/Factory | Entered another Factory area 1908 | -6/Factory | Evolved 2 slots: Propulsion x1, Utility x1 2301 | -6/Factory | Discovered new exit (range 14) 2317 | -6/Factory | Entered another Factory area 2317 | -5/Factory | Evolved 2 slots: Propulsion x1, Weapon x1 2341 | -5/Factory | Lost 3 parts (2u1w) 2586 | -5/Factory | Released all parts (2) 2598 | -5/Factory | Lost 6 parts (2n4w) 2773 | -5/Factory | Released all parts (3) 2826 | -5/Factory | Core integrity fell below 50% 2832 | -5/Factory | Build established: Mutant 2868 | -5/Factory | Discovered new exit (range 14) 2875 | -5/Factory | Entered Extension 2972 | -5/Extension | Rescued A7 3062 | -5/Extension | Spotted B-75 Beast 3088 | -5/Extension | Spotted B-75 Beast 3132 | -5/Extension | Discovered new exit (range 16) 3132 | -5/Extension | Discovered new exit (range 15) 3163 | -5/Extension | Entered Factory 3163 | -4/Factory | Accompanied by 1 ally (A7) 3163 | -4/Factory | Evolved 2 slots: Power x2 3358 | -4/Factory | Released all parts (6) 3381 | -4/Factory | Discovered new exit (range 15) 3389 | -4/Factory | Entered Research 3389 | -3/Research | Evolved 2 slots: Utility x1, Weapon x1 3408 | -3/Research | Discovered new exit (range 11) 3413 | -3/Research | Entered another Research area 3413 | -2/Research | Evolved 2 slots: Weapon x2 3575 | -2/Research | Core integrity fell below 50% 3612 | -2/Research | Core integrity fell below 20% 3632 | -2/Research | Destroyed by P-80 Master with Gamma Rifle Last Messages --------------- 03602_ Triggered Stasis Trap. 03602_ A bubble of rippling energy engulfs the area. 03602_ Field strength at 94. 03602_ R-10 Processor collects Wheel. 03602_ Field strength at 88. 03602_ K-01 Serf collects debris. 03603_ Field strength at 75. 03604_ Field strength at 69. 03605_ ALERT: Hostiles spotted, dispatching reinforcements to Terminal R006. 03605_ Field strength at 58. 03606_ K-01 Serf collects debris. 03606_ Field strength at 52. 03606_ K-01 Serf collects debris. 03607_ Field strength at 29. 03608_ Field strength at 10. 03609_ Stasis field depleted. 03610_ U-05 Engineer lays Concrete. 03623_ C-30 ARC bursts open, deploying its payload. 03623_ P-80 Master unfolds itself. Map ----- +----------------------------------------------------+ | ?????????????????????????????????????????????????? | | ???????????????????????????? ??????????????????? | | ???????????????????????????# ??? ????????????? | | ???????????????????????????# ??? #???????????? | | ???????????????????????????# ?? #???????????? | | ???????????????????????????# "?" " #???????????? | | ???????????????????????????# """"%"#???????????? | | ???????????????????????????# """ " #???????????? | | ???????????????????????????# +???????????? | | ????????????????? ?????????# #???????????? | | ????????????????? ????????# #???????????? | | ??????????????????? ??????# """ #???????????? | | ??????????????????###/###### """ #????????#### | | ??????????????????# """ #????????# | | ??????????????????# #????????# | | ??????????????????# = #????????# | | ??????????????? +????????# | | ??????????????????????#######s### #????????# | | ??????????????????????# s # #????????# | | ??????????????????????# !p # ########## | | ??????????????????????# s # | | ??????????????????????# s # | | ??????????????????????# # | | ??????????????????????# # | | ??????????????????????# ############### | | ??????????????????????# @ #?????????????# | | ??????????????????????###########?????????????# | | ?????????????????????????????????????????????? | | ?????????????????????????????????????????????? | | ????????????????????????????????????????????? | | ????????????????????????????????????????????? | | ????????????????????????????????????????????###### | | ?????????????????????????????????????????????????? | | ?????????????????????????????????????????????????? | | ?????????????????????????????????????????????????? | | ?????????????????????????????????????????????????? | | ?????????????????????????????????????????????????? | | ?????????????????????????????????????????????????? | | ?????????????????????????????????????????????????? | | ?????????????????????????????????????????????????? | | ?????????????????????????????????????????????????? | | ?????????????????????????????????????????????????? | | ?????????????????????????????????????????????????? | | ?????????????????????????????????????????????????? | | ?????????????????????????????????????????????????? | | ?????????????????????????????????????????????????? | | ?????????????????????????????????????????????????? | | ?????????????????????????????????????????????????? | | ?????????????????????????????????????????????????? | | ?????????????????????????????????????????????????? | +----------------------------------------------------+ Best States ------------- Heat Dissipation 49 Energy Generation 18 Energy Capacity 160 Matter Stores 249 Matter Capacity 300 Sight Range 16 Terrain Scan Density 10 Armor Coverage 600 Power Shielding 66 Propulsion Shielding 66 Evasion (%) 62 Recoil Reduction 1 Item Schematics ----------------- None Robot Schematics ------------------ None Fabricated ------------ Nothing Alien Tech Used ----------------- None Achievements -------------- None Challenges ------------ None Game ------ Seed ChainCatalystApparatus Manual? 0 Play Time 00:48:47 Cumulative 96.8 hours Start 2021.02.15 @ 13:44:14 End 2021.02.15 @ 14:33:04 Sessions 1 Manual Loads 0 Difficulty Rogue Special Mode None Game No. 118 Rogue 118 Adventurer 0 Explorer 0 Win Type - Total 0 Types 0/0/0/0/0/0/0/0/0 Lore% 53 Gallery% 57 Achievement% 44 Wizard Run 0 Options --------- ASCII 0 Keyboard 1 Movement Numpad Keybinds 0 Fullscreen 1 Font 18/SmallcapsGlow Map View 76x50 Tactical HUD 1 Map Filters NONE Filters NONE Steam 1 RUN: 032b23bc-04b9-4029-bd96-d50d259d0609